fUST/lending_fUST_20240730
["ID","MTS","AMOUNT","RATE_DAILY","PERIOD"]
[333615167,1722285045455,-493.718156,0.00013698,2]
[333615169,1722285045466,-500.0,0.00013698,2]
[333615170,1722285045476,-493.718156,0.00013698,2]
[333615171,1722285045485,-1848.82,0.00013698,2]
[333615172,1722285045495,-500.0,0.00013698,2]
[333615173,1722285045505,-200.256851,0.00013698,2]
[333615174,1722285045515,-200.256851,0.00013698,2]
[333615175,1722285045525,-500.0,0.00013698,2]
[333615176,1722285045535,-200.256851,0.00013698,2]
[333615177,1722285045544,-200.256851,0.00013698,2]
[333615178,1722285045553,-332.32148358,0.00013698,2]
[333615180,1722285045563,-500.0,0.00013698,2]
[333615182,1722285045573,-603.86,0.00013698,2]
[333615183,1722285045583,-1609.594627,0.00013698,2]
[333615184,1722285045593,-500.0,0.00013698,2]
[333615185,1722285045604,-500.0,0.00013698,2]
[333615186,1722285045613,-1609.594627,0.00013698,2]
[333615187,1722285045624,-2701.96,0.00013698,2]
[333615188,1722285045634,-1609.594627,0.00013698,2]
[333615189,1722285045644,-500.0,0.00013698,2]
[333615190,1722285045654,-1609.594627,0.00013698,2]
[333615191,1722285045664,-500.0,0.00013698,2]
[333615192,1722285045674,-1609.594627,0.00013698,2]
[333615193,1722285045683,-1609.594627,0.00013698,2]
[333615194,1722285045694,-500.0,0.00013698,2]
[333615195,1722285045703,-1609.594627,0.00013698,2]
[333615196,1722285045713,-1609.594627,0.00013698,2]
[333615197,1722285045722,-500.0,0.00013698,2]
[333615198,1722285045732,-500.0,0.00013698,2]
[333615199,1722285045742,-500.0,0.00013698,2]
[333615200,1722285045752,-703.17,0.00013698,2]
[333615201,1722285045761,-3035.87,0.00013698,2]
[333615202,1722285045771,-500.0,0.00013698,2]
[333615203,1722285045781,-500.0,0.00013698,2]
[333615204,1722285045790,-1540.91,0.00013698,2]
[333615205,1722285045800,-954.9,0.00013698,2]
[333615206,1722285045809,-151.0,0.00013698,2]
[333615207,1722285045818,-151.0,0.00013698,2]
[333615208,1722285045829,-151.0,0.00013698,2]
[333615209,1722285045838,-151.0,0.00013698,2]
[333615210,1722285045848,-500.0,0.00013698,2]
[333615211,1722285045857,-500.0,0.00013698,2]
[333615212,1722285045866,-2021.90145,0.00013698,2]
[333615213,1722285045875,-500.0,0.00013698,2]
[333615214,1722285045885,-500.0,0.00013698,2]
[333615215,1722285045895,-2021.90145,0.00013698,2]
[333615217,1722285045905,-500.0,0.00013698,2]
[333615218,1722285045915,-2021.90145,0.00013698,2]
[333615220,1722285045925,-2021.90145,0.00013698,2]
[333615221,1722285045935,-500.0,0.00013698,2]
[333615222,1722285045949,-500.0,0.00013698,2]
[333615223,1722285045959,-500.0,0.00013698,2]
[333615224,1722285045969,-500.0,0.00013698,2]
[333615225,1722285045979,-160.8196939,0.00013698,2]
[333615226,1722285045990,-500.0,0.00013698,2]
[333615227,1722285045999,-500.0,0.00013698,2]
[333615228,1722285046008,-2021.90145,0.00013698,2]
[333615229,1722285046018,-2021.90145,0.00013698,2]
[333615231,1722285046029,-2021.90145,0.00013698,2]
[333615232,1722285046040,-2021.90145,0.00013698,2]
[333615233,1722285046052,-500.0,0.00013698,2]
[333615234,1722285046062,-500.0,0.00013698,2]
[333615235,1722285046073,-1621.02,0.00013698,2]
[333615237,1722285046083,-500.0,0.00013698,2]
[333615238,1722285046161,-500.0,0.00013698,2]
[333615239,1722285046171,-500.0,0.00013698,2]
[333615240,1722285046181,-500.0,0.00013698,2]
[333615241,1722285046190,-500.0,0.00013698,2]
[333615242,1722285046200,-500.0,0.00013698,2]
[333615243,1722285046209,-500.0,0.00013698,2]
[333615244,1722285046219,-500.0,0.00013698,2]
[333615245,1722285046228,-500.0,0.00013698,2]
[333615246,1722285046237,-500.0,0.00013698,2]
[333615247,1722285046247,-500.0,0.00013698,2]
[333615248,1722285046256,-510.3836282,0.00013698,2]
[333615249,1722285046265,-500.0,0.00013698,2]
[333615250,1722285046274,-1331.32,0.00013698,2]
[333615251,1722285046283,-500.0,0.00013698,2]
[333615252,1722285046292,-500.0,0.00013698,2]
[333615254,1722285046301,-500.0,0.00013698,2]
[333615256,1722285046310,-1371.0,0.00013698,2]
[333615258,1722285046319,-500.0,0.00013698,2]
[333615260,1722285046330,-500.0,0.00013698,2]
[333615261,1722285046339,-500.0,0.00013698,2]
[333615262,1722285046349,-508.09687096,0.00013698,2]
[333615263,1722285046358,-644.295284,0.00013698,2]
[333615264,1722285046367,-644.295284,0.00013698,2]
[333615265,1722285046377,-500.0,0.00013698,2]
[333615266,1722285046386,-758.76,0.00013698,2]
[333615267,1722285046395,-12065.19,0.00013698,2]
[333615268,1722285046404,-644.295284,0.00013698,2]
[333615269,1722285046413,-644.295284,0.00013698,2]
[333615270,1722285046422,-500.0,0.00013698,2]
[333615271,1722285046431,-500.0,0.00013698,2]
[333615272,1722285046440,-500.0,0.00013698,2]
[333615273,1722285046450,-644.295284,0.00013698,2]
[333615274,1722285046459,-500.0,0.00013698,2]
[333615275,1722285046469,-844.12,0.00013698,2]
[333615276,1722285046479,-644.295284,0.00013698,2]
[333615277,1722285046488,-644.295284,0.00013698,2]
[333615278,1722285046498,-644.295284,0.00013698,2]
[333615279,1722285046508,-500.0,0.00013698,2]
[333615280,1722285046517,-500.0,0.00013698,2]
[333615281,1722285046526,-5073.34,0.00013698,2]
[333615282,1722285046535,-1427.52,0.00013698,2]
[333615283,1722285046544,-500.0,0.00013698,2]
[333615284,1722285046553,-500.0,0.00013698,2]
[333615285,1722285046561,-500.0,0.00013698,2]
[333615286,1722285046571,-500.0,0.00013698,2]
[333615287,1722285046580,-842.38,0.00013698,2]
[333615288,1722285046589,-500.0,0.00013698,2]
[333615289,1722285046599,-500.0,0.00013698,2]
[333615290,1722285046608,-733.53,0.00013698,2]
[333615291,1722285046618,-500.0,0.00013698,2]
[333615292,1722285046628,-500.0,0.00013698,2]
[333615293,1722285046637,-500.0,0.00013698,2]
[333615294,1722285046647,-594.29,0.00013698,2]
[333615295,1722285046656,-500.0,0.00013698,2]
[333615296,1722285046665,-500.0,0.00013698,2]
[333615297,1722285046675,-500.0,0.00013698,2]
[333615298,1722285046684,-500.0,0.00013698,2]
[333615299,1722285046694,-500.0,0.00013698,2]
[333615300,1722285046703,-300.24511846,0.00013698,2]
[333615301,1722285046712,-500.0,0.00013698,2]
[333615302,1722285046722,-500.0,0.00013698,2]
[333615303,1722285046731,-500.0,0.00013698,2]
[333615304,1722285046740,-500.0,0.00013698,2]
[333615305,1722285046750,-840.99,0.00013698,2]
[333615306,1722285046759,-500.0,0.00013698,2]
[333615307,1722285046769,-985.52599,0.00013698,2]
[333615308,1722285046779,-985.52599,0.00013698,2]
[333615309,1722285046788,-500.0,0.00013698,2]
[333615310,1722285046798,-985.52599,0.00013698,2]
[333615311,1722285046808,-985.52599,0.00013698,2]
[333615312,1722285046818,-500.0,0.00013698,2]
[333615313,1722285046828,-500.0,0.00013698,2]
[333615314,1722285046837,-985.52599,0.00013698,2]
[333615315,1722285046846,-500.0,0.00013698,2]
[333615316,1722285046855,-500.0,0.00013698,2]
[333615317,1722285046864,-500.0,0.00013698,2]
[333615318,1722285046873,-500.0,0.00013698,2]
[333615319,1722285046883,-500.0,0.00013698,2]
[333615320,1722285046892,-500.0,0.00013698,2]
[333615321,1722285046901,-329.098326,0.00013698,2]
[333615322,1722285046910,-329.098326,0.00013698,2]
[333615323,1722285046919,-539.84,0.00013698,2]
[333615324,1722285046929,-329.098326,0.00013698,2]
[333615325,1722285046940,-329.098326,0.00013698,2]
[333615326,1722285046961,-500.0,0.00013698,2]
[333615327,1722285046971,-6596.52,0.00013698,2]
[333615328,1722285046981,-1109.47,0.00013698,2]
[333615329,1722285046990,-985.52599,0.00013698,2]
[333615330,1722285047000,-985.52599,0.00013698,2]
[333615331,1722285047010,-500.0,0.00013698,2]
[333615332,1722285047020,-985.52599,0.00013698,2]
[333615333,1722285047029,-329.098326,0.00013698,2]
[333615334,1722285047039,-985.52599,0.00013698,2]
[333615335,1722285047048,-500.0,0.00013698,2]
[333615336,1722285047058,-329.098326,0.00013698,2]
[333615337,1722285047068,-500.0,0.00013698,2]
[333615338,1722285047077,-500.0,0.00013698,2]
[333615339,1722285047087,-985.52599,0.00013698,2]
[333615340,1722285047096,-329.098326,0.00013698,2]
[333615341,1722285047106,-329.098326,0.00013698,2]
[333615342,1722285047115,-500.0,0.00013698,2]
[333615343,1722285047124,-500.0,0.00013698,2]
[333615344,1722285047133,-500.0,0.00013698,2]
[333615345,1722285047142,-500.0,0.00013698,2]
[333615346,1722285047151,-1200.775894,0.00013698,2]
[333615347,1722285047161,-539.44620326,0.00013698,2]
[333615348,1722285047172,-500.0,0.00013698,2]
[333615349,1722285047181,-1200.775894,0.00013698,2]
[333615350,1722285047190,-1200.775894,0.00013698,2]
[333615351,1722285047199,-1721.94,0.00013698,2]
[333615352,1722285047208,-506.65295001,0.00013698,2]
[333615353,1722285047218,-500.0,0.00013698,2]
[333615354,1722285047227,-500.0,0.00013698,2]
[333615355,1722285047236,-924.62,0.00013698,2]
[333615356,1722285047245,-1200.775894,0.00013698,2]
[333615357,1722285047254,-500.0,0.00013698,2]
[333615358,1722285047263,-1119.91,0.00013698,2]
[333615359,1722285047272,-1200.775894,0.00013698,2]
[333615360,1722285047282,-500.0,0.00013698,2]
[333615361,1722285047291,-500.0,0.00013698,2]
[333615362,1722285047301,-1538.29,0.00013698,2]
[333615363,1722285047310,-500.0,0.00013698,2]
[333615364,1722285047319,-500.0,0.00013698,2]
[333615365,1722285047329,-1200.775894,0.00013698,2]
[333615366,1722285047338,-550.91006411,0.00013698,2]
[333615367,1722285047347,-500.0,0.00013698,2]
[333615368,1722285047357,-1200.775894,0.00013698,2]
[333615369,1722285047367,-500.0,0.00013698,2]
[333615370,1722285047377,-1200.775894,0.00013698,2]
[333615371,1722285047386,-1200.775894,0.00013698,2]
[333615372,1722285047395,-1200.775894,0.00013698,2]
[333615373,1722285047405,-500.0,0.00013698,2]
[333615374,1722285047414,-737.36,0.00013698,2]
[333615375,1722285047423,-274.36945872,0.00013698,2]
[333615376,1722285047492,-196.13861697,0.00013698,2]
[333615377,1722285047509,-500.0,0.00013698,2]
[333615378,1722285047518,-151.0,0.00013698,2]
[333615379,1722285047527,-500.0,0.00013698,2]
[333615380,1722285047536,-500.0,0.00013698,2]
[333615381,1722285047546,-151.0,0.00013698,2]
[333615382,1722285047555,-151.0,0.00013698,2]
[333615383,1722285047565,-6922.92,0.00013698,2]
[333615384,1722285047576,-500.0,0.00013698,2]
[333615385,1722285047586,-2046.24,0.00013698,2]
[333615386,1722285047596,-500.0,0.00013698,2]
[333615387,1722285047605,-1631.4,0.00013698,2]
[333615388,1722285047614,-500.0,0.00013698,2]
[333615389,1722285047624,-151.0,0.00013698,2]
[333615390,1722285047633,-500.0,0.00013698,2]
[333615391,1722285047642,-405.082724,0.00013698,2]
[333615392,1722285047651,-405.082724,0.00013698,2]
[333615393,1722285047661,-405.082724,0.00013698,2]
[333615394,1722285047670,-405.082724,0.00013698,2]
[333615395,1722285047680,-158.097761,0.00013699,2]
[333615396,1722285047690,-158.097761,0.00013699,2]
[333615397,1722285047699,-158.097761,0.00013699,2]
[333615398,1722285047709,-158.097761,0.00013699,2]
[333615399,1722285047718,-158.097761,0.00013699,2]
[333615400,1722285047727,-158.097761,0.00013699,2]
[333615401,1722285047737,-158.097761,0.00013699,2]
[333615402,1722285047747,-158.097761,0.00013699,2]
[333615403,1722285047756,-310.0,0.00013699,2]
[333615404,1722285047766,-310.0,0.00013699,2]
[333615405,1722285047777,-231.325984,0.00013699,2]
[333615406,1722285047786,-355.0,0.00013699,2]
[333615407,1722285047796,-2401.479695,0.00013699,2]
[333615408,1722285047806,-151.0,0.00013699,2]
[333615409,1722285047816,-151.0,0.00013699,2]
[333615410,1722285047825,-151.0,0.00013699,2]
[333615411,1722285047834,-3000.0,0.00013699,2]
[333615412,1722285047843,-158.097761,0.00013699,2]
[333615413,1722285047853,-158.097761,0.00013699,2]
[333615414,1722285047863,-151.0,0.00013699,2]
[333615415,1722285047873,-151.0,0.00013699,2]
[333615416,1722285047883,-151.0,0.00013699,2]
[333615417,1722285047893,-151.0,0.00013699,2]
[333615418,1722285047902,-151.0,0.00013699,2]
[333615419,1722285047912,-218.817922,0.00013699,2]
[333615420,1722285047922,-236.671377,0.00013699,2]
[333615421,1722285047935,-236.671377,0.00013699,2]
[333615422,1722285047953,-151.0,0.00013699,2]
[333615423,1722285047963,-528.622657,0.00013699,2]
[333615424,1722285047973,-528.622657,0.00013699,2]
[333615425,1722285047983,-150.112233,0.000137,2]
[333615426,1722285047992,-150.112233,0.000137,2]
[333615427,1722285048002,-150.112233,0.000137,2]
[333615428,1722285048013,-150.112233,0.000137,2]
[333615429,1722285048025,-150.112233,0.000137,2]
[333615430,1722285048034,-150.112233,0.000137,2]
[333615431,1722285048044,-150.112233,0.000137,2]
[333615432,1722285048054,-150.112233,0.000137,2]
[333615433,1722285048064,-150.112233,0.000137,2]
[333615434,1722285048073,-150.112233,0.000137,2]
[333615435,1722285048083,-334.0998468,0.000137,2]
[333615436,1722285048093,-150.112233,0.000137,2]
[333615437,1722285048103,-150.112233,0.000137,2]
[333615438,1722285048113,-150.112233,0.000138,2]
[333615439,1722285048122,-150.112233,0.000138,2]
[333615440,1722285048131,-270.678,0.00013844,2]
[333615441,1722285048140,-506.0,0.00013844,2]
[333615442,1722285048149,-1410.0,0.00013844,2]
[333615443,1722285048158,-22195.45721955,0.00013899,2]
[333615444,1722285048167,-150.112233,0.000139,2]
[333615445,1722285048176,-150.112233,0.000139,2]
[333615446,1722285048185,-3879.02120267,0.000139,2]
[333615447,1722285048444,-7411.34301064,0.000139,2]
[333615448,1722285048453,-158.097761,0.00013972,2]
[333615449,1722285048463,-158.097761,0.00013972,2]
[333615450,1722285048473,-158.097761,0.00013972,2]
[333615451,1722285048482,-158.097761,0.00013972,2]
[333615452,1722285048491,-158.097761,0.00013972,2]
[333615453,1722285048501,-158.097761,0.00013972,2]
[333615454,1722285048511,-158.097761,0.00013972,2]
[333615455,1722285048604,-158.097761,0.00013972,2]
[333615456,1722285048616,-151.0,0.00013972,2]
[333615457,1722285048625,-151.0,0.00013972,2]
[333615458,1722285048635,-151.0,0.00013972,2]
[333615459,1722285048645,-151.0,0.00013972,2]
[333615460,1722285048654,-500.0,0.00013972,2]
[333615461,1722285048664,-504.03913562,0.00013972,2]
[333615462,1722285048673,-500.0,0.00013972,2]
[333615463,1722285048682,-500.0,0.00013972,2]
[333615464,1722285048691,-500.0,0.00013972,2]
[333615465,1722285048701,-500.0,0.00013972,2]
[333615466,1722285048711,-195.90973949,0.00013972,2]
[333615467,1722285049237,-405.082724,0.00013698,2]
[333615468,1722285049247,-500.0,0.00013698,2]
[333615469,1722285049257,-1104.124052,0.00013698,2]
[333615470,1722285049266,-221.67115808,0.00013698,2]
[333615471,1722285049280,-882.45289392,0.00013698,2]
[333615472,1722285049290,-304.09026051,0.00013972,2]
[333615473,1722285049300,-500.0,0.00013972,2]
[333615474,1722285049310,-583.87173242,0.00013972,2]
[333615475,1722285049319,-505.17,0.00013972,2]
[333615476,1722285049330,-500.0,0.00013972,2]
[333615477,1722285049339,-500.0,0.00013972,2]
[333615478,1722285049348,-583.17618753,0.00013972,2]
[333615479,1722285049358,-500.0,0.00013972,2]
[333615480,1722285049369,-500.0,0.00013972,2]
[333615481,1722285049379,-613.97925826,0.00013972,2]
[333615482,1722285049389,-500.0,0.00013972,2]
[333615483,1722285049399,-500.0,0.00013972,2]
[333615484,1722285049409,-500.0,0.00013972,2]
[333615485,1722285049419,-504.20254421,0.00013972,2]
[333615486,1722285049428,-500.0,0.00013972,2]
[333615487,1722285049439,-500.0,0.00013972,2]
[333615488,1722285049449,-500.0,0.00013972,2]
[333615489,1722285049459,-500.0,0.00013972,2]
[333615490,1722285049469,-500.0,0.00013972,2]
[333615491,1722285049481,-500.0,0.00013972,2]
[333615492,1722285049491,-500.0,0.00013972,2]
[333615493,1722285049501,-500.0,0.00013972,2]
[333615494,1722285049510,-500.0,0.00013972,2]
[333615495,1722285049519,-500.0,0.00013972,2]
[333615496,1722285049528,-500.0,0.00013972,2]
[333615497,1722285049538,-500.0,0.00013972,2]
[333615498,1722285049548,-554.22845092,0.00013972,2]
[333615499,1722285049558,-500.0,0.00013972,2]
[333615500,1722285049568,-500.0,0.00013972,2]
[333615501,1722285049579,-500.0,0.00013972,2]
[333615502,1722285049589,-500.0,0.00013972,2]
[333615503,1722285049599,-500.0,0.00013972,2]
[333615504,1722285049610,-500.0,0.00013972,2]
[333615505,1722285049620,-500.0,0.00013972,2]
[333615506,1722285049630,-500.0,0.00013972,2]
[333615507,1722285049641,-500.0,0.00013972,2]
[333615508,1722285049651,-500.0,0.00013972,2]
[333615509,1722285049662,-507.16405368,0.00013972,2]
[333615510,1722285049673,-500.0,0.00013972,2]
[333615511,1722285049683,-500.0,0.00013972,2]
[333615512,1722285049694,-500.0,0.00013972,2]
[333615513,1722285049704,-500.0,0.00013972,2]
[333615514,1722285049714,-500.0,0.00013972,2]
[333615515,1722285049725,-500.0,0.00013972,2]
[333615516,1722285049735,-506.12596428,0.00013972,2]
[333615517,1722285049746,-500.0,0.00013972,2]
[333615518,1722285049756,-500.0,0.00013972,2]
[333615519,1722285049767,-151.0,0.00013972,2]
[333615520,1722285049776,-151.0,0.00013972,2]
[333615521,1722285049787,-214.499347,0.00013972,2]
[333615522,1722285049798,-500.0,0.00013972,2]
[333615523,1722285049808,-500.0,0.00013972,2]
[333615524,1722285049819,-500.0,0.00013972,2]
[333615525,1722285049829,-500.0,0.00013972,2]
[333615526,1722285049839,-500.0,0.00013972,2]
[333615527,1722285049850,-500.0,0.00013972,2]
[333615528,1722285049860,-500.0,0.00013972,2]
[333615529,1722285049870,-536.20268313,0.00013972,2]
[333615530,1722285049881,-500.0,0.00013972,2]
[333615531,1722285049891,-500.0,0.00013972,2]
[333615532,1722285049901,-500.0,0.00013972,2]
[333615533,1722285049912,-500.0,0.00013972,2]
[333615534,1722285049922,-500.0,0.00013972,2]
[333615535,1722285049932,-500.0,0.00013972,2]
[333615536,1722285049943,-151.0,0.00013972,2]
[333615537,1722285050023,-882.42,0.00013972,2]
[333615538,1722285050035,-151.0,0.00013972,2]
[333615539,1722285050045,-151.0,0.00013972,2]
[333615540,1722285050056,-151.0,0.00013972,2]
[333615541,1722285050066,-291.915276,0.00013972,2]
[333615542,1722285050075,-206.464796,0.00013972,2]
[333615543,1722285050086,-502.79478643,0.00013972,2]
[333615544,1722285050096,-151.0,0.00013972,2]
[333615545,1722285050107,-151.0,0.00013972,2]
[333615546,1722285050117,-151.0,0.00013972,2]
[333615547,1722285050127,-268.562233,0.00013972,2]
[333615548,1722285050137,-500.0,0.00013972,2]
[333615549,1722285050147,-503.62001656,0.00013972,2]
[333615550,1722285050157,-500.0,0.00013972,2]
[333615551,1722285050166,-500.0,0.00013972,2]
[333615552,1722285050176,-500.0,0.00013972,2]
[333615553,1722285050185,-500.0,0.00013972,2]
[333615554,1722285050195,-500.0,0.00013972,2]
[333615555,1722285050206,-500.0,0.00013972,2]
[333615556,1722285050215,-500.0,0.00013972,2]
[333615557,1722285050225,-568.73,0.00013972,2]
[333615558,1722285050235,-500.0,0.00013972,2]
[333615559,1722285050244,-332.12785927,0.00013972,2]
[333615560,1722285050260,-640.54214073,0.00013972,2]
[333615561,1722285050270,-573.24,0.00013972,2]
[333615562,1722285050279,-500.0,0.00013972,2]
[333615563,1722285050289,-500.0,0.00013972,2]
[333615564,1722285050299,-500.0,0.00013972,2]
[333615565,1722285050308,-500.0,0.00013972,2]
[333615566,1722285050318,-500.0,0.00013972,2]
[333615567,1722285050328,-1091.07,0.00013972,2]
[333615568,1722285050338,-500.0,0.00013972,2]
[333615569,1722285050347,-1086.67,0.00013972,2]
[333615570,1722285050357,-503.36752975,0.00013972,2]
[333615571,1722285050366,-500.0,0.00013972,2]
[333615572,1722285050375,-500.0,0.00013972,2]
[333615573,1722285050384,-500.0,0.00013972,2]
[333615574,1722285050394,-1254.04,0.00013972,2]
[333615575,1722285050403,-500.0,0.00013972,2]
[333615576,1722285050413,-500.0,0.00013972,2]
[333615577,1722285050423,-500.0,0.00013972,2]
[333615578,1722285050432,-500.0,0.00013972,2]
[333615579,1722285050442,-741.2,0.00013972,2]
[333615580,1722285050452,-503.4263676,0.00013972,2]
[333615581,1722285050461,-500.0,0.00013972,2]
[333615582,1722285050471,-500.0,0.00013972,2]
[333615583,1722285050481,-236.671377,0.00013972,2]
[333615584,1722285050491,-236.671377,0.00013972,2]
[333615585,1722285050500,-500.0,0.00013972,2]
[333615586,1722285050509,-236.671377,0.00013972,2]
[333615587,1722285050519,-236.671377,0.00013972,2]
[333615588,1722285050528,-500.0,0.00013972,2]
[333615589,1722285050537,-236.671377,0.00013972,2]
[333615590,1722285050547,-500.0,0.00013972,2]
[333615591,1722285050556,-236.671377,0.00013972,2]
[333615592,1722285050565,-500.0,0.00013972,2]
[333615593,1722285050575,-236.671377,0.00013972,2]
[333615594,1722285050589,-236.671377,0.00013972,2]
[333615595,1722285050599,-500.0,0.00013972,2]
[333615596,1722285050608,-500.0,0.00013972,2]
[333615597,1722285050618,-500.0,0.00013972,2]
[333615598,1722285050628,-503.56894453,0.00013972,2]
[333615599,1722285050638,-579.92649508,0.00013972,2]
[333615600,1722285050647,-500.0,0.00013972,2]
[333615601,1722285050657,-500.0,0.00013972,2]
[333615602,1722285050666,-663.69,0.00013972,2]
[333615603,1722285050676,-712.83,0.00013972,2]
[333615604,1722285050685,-503.89869016,0.00013972,2]
[333615605,1722285050696,-500.0,0.00013972,2]
[333615606,1722285050705,-500.0,0.00013972,2]
[333615607,1722285050718,-525.65409885,0.00013972,2]
[333615608,1722285050727,-500.0,0.00013972,2]
[333615609,1722285050737,-500.0,0.00013972,2]
[333615610,1722285050747,-500.0,0.00013972,2]
[333615611,1722285050757,-500.0,0.00013972,2]
[333615612,1722285050767,-500.0,0.00013972,2]
[333615613,1722285050777,-500.0,0.00013972,2]
[333615614,1722285050786,-500.0,0.00013972,2]
[333615615,1722285050796,-500.0,0.00013972,2]
[333615616,1722285050806,-500.0,0.00013972,2]
[333615617,1722285050816,-135.19941551,0.00013972,2]
[333615618,1722285051413,-1104.124052,0.00013698,2]
[333615619,1722285051423,-969.229471,0.00013698,2]
[333615620,1722285051434,-134.894581,0.00013698,2]
[333615621,1722285051444,-409.03008555,0.00013698,2]
[333615622,1722285051778,-695.09396645,0.00013698,2]
[333615623,1722285051788,-500.0,0.00013698,2]
[333615624,1722285051798,-405.082724,0.00013698,2]
[333615625,1722285051807,-1236.52503,0.00013698,2]
[333615626,1722285051817,-1236.52503,0.00013698,2]
[333615627,1722285051828,-405.082724,0.00013698,2]
[333615628,1722285051911,-405.082724,0.00013698,2]
[333615629,1722285051921,-1236.52503,0.00013698,2]
[333615630,1722285051931,-1236.52503,0.00013698,2]
[333615631,1722285051941,-405.082724,0.00013698,2]
[333615632,1722285051954,-405.082724,0.00013698,2]
[333615633,1722285051964,-500.0,0.00013698,2]
[333615634,1722285051973,-500.0,0.00013698,2]
[333615635,1722285051983,-1104.124052,0.00013698,2]
[333615636,1722285051994,-364.80058449,0.00013972,2]
[333615637,1722285052004,-500.0,0.00013972,2]
[333615638,1722285052014,-500.0,0.00013972,2]
[333615639,1722285052027,-500.0,0.00013972,2]
[333615640,1722285052036,-500.0,0.00013972,2]
[333615641,1722285052047,-348.87725706,0.00013972,2]
[333615742,1722286238163,-160.08287463,9.999e-05,2]
[333615743,1722286238173,-154.74467746,9.999e-05,2]
[333615744,1722286238184,-2530.84812235,0.00012213,2]
[333615745,1722286238196,-1314.4,0.00012213,2]
[333615746,1722286238216,-5730.0,0.00012213,2]
[333615769,1722286240273,-478.21516889,0.00012213,2]
[333615770,1722286240329,-1772.6,0.00012213,2]
[333615850,1722286246559,-691.02362734,0.00012213,2]
[333615892,1722287433663,-154.82195783,9.999e-05,2]
[333615894,1722287433673,-159.52671576,9.999e-05,2]
[333615896,1722287433683,-166.666666,0.00010963,2]
[333615898,1722287433697,-166.666666,0.00011004,2]
[333615900,1722287433706,-166.666666,0.00011045,2]
[333615902,1722287433716,-166.666666,0.00011086,2]
[333615904,1722287433725,-166.666666,0.00011127,2]
[333615906,1722287433736,-166.666666,0.00011167,2]
[333615908,1722287433745,-166.666666,0.00011208,2]
[333615910,1722287433755,-166.666666,0.00011249,2]
[333615912,1722287433765,-166.666666,0.0001129,2]
[333615914,1722287433775,-166.666666,0.00011331,2]
[333615916,1722287433785,-166.666666,0.00011371,2]
[333615918,1722287433794,-166.666666,0.00011412,2]
[333615920,1722287433804,-166.666666,0.00011453,2]
[333615922,1722287433815,-166.666666,0.00011494,2]
[333615924,1722287433824,-166.666666,0.00011535,2]
[333615926,1722287433837,-5309.48206098,0.00011823,2]
[333615928,1722287433846,-300.0,0.0001188,2]
[333615931,1722287433856,-300.0,0.0001188,2]
[333615933,1722287433865,-4662.36927543,0.0001188,5]
[333616429,1722287438651,-776.11373353,0.0001188,5]
[333616430,1722287438661,-22223.88649647,0.00011881,2]
[333616431,1722287438715,-1310.4,0.00011881,2]
[333616432,1722287438727,-1365.71350353,0.00011881,2]
[333616433,1722287438738,-154.72922386,0.00012119,2]
[333616434,1722287438748,-157.31333746,0.00012213,2]
[333616435,1722287438758,-1629.26928721,0.00012213,2]